{"text_format":"1","workbook":"xlsx","n_sheets":8,"sheets":["Reminder","Dates","Providers","District #1","District #2","District #3","District #4","Help"],"not_rendered":{"charts":0,"images":2,"macros":1,"external_links":0,"defined_names":0,"comments":0,"pivot_tables":0},"unopened":[],"bounds":{"document_bytes":16777216,"sheet_cells":100000,"rows_first":2000,"rows_last":500,"rows_between":2000,"halvings":0,"cell_chars":16384,"cell_head_chars":4096},"cells_cut":0,"cells_raw":0,"read":"whole","date_system":"1900"}

{"sheet":"Reminder","index":0,"n_rows":83,"n_cols":16,"rows_kept":83,"cut":false,"hidden":false,"merged":[]}
["Home Teaching Reminder"]
[]
["Date",{"$f":"NOW()","v":"2012-12-03T12:45:56.320"}]
["Days left in Month",{"$f":"HLOOKUP(MONTH(B3),Dates!B2:M3,2)-DAY(B3)","v":28}]
[]
["District","Companionship","Home Teachees","Missed Three Straight","September","October","November","December","January","February","March","April","May","June","July","August"]
["Spencer","David Coats","Ian McGuire",null,"Yes","Yes","Yes"]
[null,"Lance Stutz","Chris Lewis",null,"Yes","Yes","Yes"]
[null,null,"Kristen Danner",null,"Yes","Yes","Yes"]
[null,null,"Kristy Brennan",null,"Yes","Yes","Yes"]
[null,null,"Heidi Morris",null,"Yes","Yes","Yes"]
[null,"David Applegarth","Patrick Harris",null,"Yes","Yes","Yes"]
[null,"Collin Skousen","Logan Wiser",null,"No","Yes","Yes"]
[null,null,"Liz Sugihara",null,"Yes","Yes","Yes"]
[null,null,"Emily Drake",null,"Yes","Yes","Yes"]
[null,"Ian McGuire","Marc Bowman",null,"No","Yes","Yes"]
[null,"Jordan Nielsen","Jason Lefrandt",null,"No","Yes","Yes"]
[null,null,"Elizabeth Brant",null,"No","Yes","Yes"]
[null,null,"Sarah Swerdfeger",null,"No","Yes","Yes"]
[null,null,"Melissa Guitierrez",null,"No","Yes","Yes"]
[null,"Brady Hirst","Nick Bell",null,"Yes","Yes","Yes"]
[null,"Wes Haws","Clement Gaillard",null,"Yes","Yes","Yes"]
[null,null,"Anke Lehnert",null,"Yes","Yes","Yes"]
[null,null,"Kristin Queen",null,"Yes","Yes","Yes"]
[null,null,"Aubrey Steenhoek",null,"Yes","Yes","Yes"]
["David","Kevin Walton","John Matson",null,"Yes","Yes","Yes"]
[null,"Jake Nelson","Luke Chalmers",null,"Yes","Yes","Yes"]
[null,"Chris Lewis","Megan Thomas",null,"Yes","Yes","Yes"]
[null,null,"Colleen Thomas",null,"No","Yes","Yes"]
[null,"Spencer Fullmer","Lance Stutz","X","No","No","No"]
[null,"Matt McCartney","David Coats","X","No","No","No"]
[null,null,"Rebecca Barrus",null,"No","Yes","Yes"]
[null,null,"Kayla Goodman",null,"No","Yes","Yes"]
[null,null,"Valerie Vance",null,"Yes","Yes","Yes"]
[null,"Cole Griffith","David Applegarth",null,"No","Yes","Yes"]
[null,"Tony Pratt","Brady Hirst",null,"No","Yes","Yes"]
[null,null,"Jessica Briscoe",null,"No","Yes","Yes"]
[null,null,"Maren Hale",null,"No","Yes","Yes"]
[null,"Nick Bell","Matt McCartney","X","No","No","No"]
[null,"Clement Gaillard","Jordan Nielsen","X","No","No","No"]
[null,null,"Nicole Larsen","X","No","No","No"]
[null,null,"Ashley Ward","X","No","No","No"]
[null,"Ben Johnson","James Reber",null,"Yes","Yes","Yes"]
[null,"Scott Snow","Nick Carter",null,"Yes","Yes","Yes"]
[null,null,"Jenny Butcherite",null,"Yes","Yes","Yes"]
[null,null,"Brittany Feuz",null,"Yes","Yes","Yes"]
[null,null,"Amy Dean",null,"Yes","Yes","Yes"]
["Marc","John Matson","Ben Johnson",null,"Yes","Yes","Yes"]
[null,"Luke Chalmers","Scott Snow",null,"Yes","Yes","Yes"]
[null,null,"Katherine Bickel",null,"Yes","Yes","Yes"]
[null,null,"Lydia Nielsen",null,"Yes","No","No"]
[null,"Tanner Frost","Tony Pratt",null,"Yes","Yes","Yes"]
[null,"Patrick Harris","Jake Nelson",null,"Yes","Yes","Yes"]
[null,null,"Haley Hansen",null,"Yes","Yes","Yes"]
[null,"Jared Clouse","James Grossman",null,"Yes","Yes","Yes"]
[null,"Alden Simmons","Michael Rushton",null,"Yes","Yes","Yes"]
[null,null,"Dan Geiger",null,"Yes","Yes","Yes"]
[null,null,"McKenzie Elsmore",null,"Yes","Yes","Yes"]
[null,"Nick Carter","Alden Simmons",null,"Yes","No","No"]
[null,"James Reber","Jared Clouse",null,"Yes","No","No"]
[null,null,"Mariah McCartney",null,"Yes","No","No"]
[null,null,"Alissa Chase",null,"Yes","No","No"]
["Jordan","Brent Hall","Hapa Simon",null,"Yes","Yes","Yes"]
[null,"Logan Wiser","Richard Mohlman",null,"Yes","Yes","Yes"]
[null,null,"Kyrie Dangerfield",null,"Yes","Yes","Yes"]
[null,null,"Niecie Jones",null,"Yes","Yes","Yes"]
[null,null,"Amelia Wegener",null,"Yes","Yes","Yes"]
[null,"Marc Bowman","Wes Haws",null,"No","Yes","Yes"]
[null,"Hapa Simon","Collin Skousen",null,"No","Yes","Yes"]
[null,null,"Tiana Bettinson","X","No","No","No"]
[null,null,"Carly Stone","X","No","No","No"]
[null,"Dan Geiger","Spencer Fullmer","X","No","No","No"]
[null,"David Burgess","Cole Griffith",null,"Yes","No","No"]
[null,null,"Anna Johnson",null,"No","Yes","Yes"]
[null,null,"Kendra Lewis","X","No","No","No"]
[null,"Richard Mohlman","David Burgess",null,"No","Yes","Yes"]
[null,"Jason Lefrandt","Kevin Walton",null,"No","Yes","Yes"]
[null,null,"Michelle Carver",null,"No","Yes","Yes"]
[null,null,"Cassi Rindlisbacher",null,"No","Yes","Yes"]
[null,"James Grossman","Tanner Frost",null,"No","Yes","Yes"]
[null,"Michael Rushton","Brent Hall",null,"No","Yes","Yes"]
[null,null,"Keilah Martinez",null,"Yes","Yes","Yes"]
[null,null,"Stephanie Francis",null,"Yes","Yes","Yes"]

{"sheet":"Dates","index":1,"n_rows":3,"n_cols":13,"rows_kept":3,"cut":false,"hidden":false,"merged":[]}
[]
["Month",1,2,3,4,5,6,7,8,9,10,11,12]
["Days in a month",31,28,31,30,31,30,31,31,30,31,30,31]

{"sheet":"Providers","index":2,"n_rows":6,"n_cols":1,"rows_kept":6,"cut":false,"hidden":false,"merged":[]}
["AT&T"]
["Cingular"]
["Nextel"]
["T-Mobile"]
["Verizon"]
["Sprint"]

{"sheet":"District #1","index":3,"n_rows":8,"n_cols":5,"rows_kept":8,"cut":false,"hidden":false,"merged":[]}
["Name","Email","Phone Number","Service Provider","Phone Number2"]
[{"$f":"Reminder!B7","v":"David Coats"},"mrc_bwmn@yahoo.com","210-844-7228","AT&T","2108447228@txt.att.net"]
[{"$f":"Reminder!B12","v":"David Applegarth"},"tjcecil6@gmail.com","916-380-8854","Sprint","9163808854@messaging.sprintpcs.com"]
[{"$f":"Reminder!B16","v":"Ian McGuire"},"mrc_bwmn@yahoo.com","210-844-7228","AT&T","2108447228@txt.att.net"]
[{"$f":"Reminder!B21","v":"Brady Hirst"},"tjcecil6@gmail.com","916-380-8854","Sprint","9163808854@messaging.sprintpcs.com"]
[]
["District Leader","Email","Phone Number","Service Provider","Phone Number2"]
[{"$f":"Reminder!A7","v":"Spencer"},"mrc_bwmn@yahoo.com","210-844-7228","AT&T"]

{"sheet":"District #2","index":4,"n_rows":9,"n_cols":5,"rows_kept":9,"cut":false,"hidden":false,"merged":[]}
["Name","Email","Phone Number","Service Provider","Phone Number2"]
[{"$f":"Reminder!B26","v":"Kevin Walton"},"mrc_bwmn@yahoo.com","210-844-7228","AT&T","2108447228@txt.att.net"]
[{"$f":"Reminder!B30","v":"Spencer Fullmer"},"tjcecil6@gmail.com","916-380-8854","Sprint","9163808854@messaging.sprintpcs.com"]
[{"$f":"Reminder!B35","v":"Cole Griffith"},"mrc_bwmn@yahoo.com","210-844-7228","AT&T","2108447228@txt.att.net"]
[{"$f":"Reminder!B39","v":"Nick Bell"},"tjcecil6@gmail.com","916-380-8854","Sprint","9163808854@messaging.sprintpcs.com"]
[{"$f":"Reminder!B43","v":"Ben Johnson"},"tjcecil6@gmail.com","916-380-8854","Sprint","9163808854@messaging.sprintpcs.com"]
[]
["District Leader","Email","Phone Number","Service Provider","Phone Number2"]
[{"$f":"Reminder!A26","v":"David"},"mrc_bwmn@yahoo.com","210-844-7228","AT&T"]

{"sheet":"District #3","index":5,"n_rows":8,"n_cols":5,"rows_kept":8,"cut":false,"hidden":false,"merged":[]}
["Name","Email","Phone Number","Service Provider","Phone Number2"]
[{"$f":"Reminder!B48","v":"John Matson"},"mrc_bwmn@yahoo.com","210-844-7228","AT&T","2108447228@txt.att.net"]
[{"$f":"Reminder!B52","v":"Tanner Frost"},"tjcecil6@gmail.com","916-380-8854","Sprint","9163808854@messaging.sprintpcs.com"]
[{"$f":"Reminder!B55","v":"Jared Clouse"},"mrc_bwmn@yahoo.com","210-844-7228","AT&T","2108447228@txt.att.net"]
[{"$f":"Reminder!B59","v":"Nick Carter"},"tjcecil6@gmail.com","916-380-8854","Sprint","9163808854@messaging.sprintpcs.com"]
[]
["District Leader","Email","Phone Number","Service Provider","Phone Number@messaging.sprintpcs.com"]
[{"$f":"Reminder!A48","v":"Marc"},"mrc_bwmn@yahoo.com","210-844-7228","AT&T","2108447228@txt.att.net"]

{"sheet":"District #4","index":6,"n_rows":9,"n_cols":5,"rows_kept":9,"cut":false,"hidden":false,"merged":[]}
["Name","Email","Phone Number","Service Provider","Phone Number2"]
[{"$f":"Reminder!B63","v":"Brent Hall"},"mrc_bwmn@yahoo.com","210-844-7228","AT&T","2108447228@txt.att.net"]
[{"$f":"Reminder!B68","v":"Marc Bowman"},"tjcecil6@gmail.com","916-380-8854","Sprint","9163808854@messaging.sprintpcs.com"]
[{"$f":"Reminder!B72","v":"Dan Geiger"},"mrc_bwmn@yahoo.com","210-844-7228","AT&T","2108447228@txt.att.net"]
[{"$f":"Reminder!B76","v":"Richard Mohlman"},"tjcecil6@gmail.com","916-380-8854","Sprint","9163808854@messaging.sprintpcs.com"]
[{"$f":"Reminder!B80","v":"James Grossman"},"tjcecil6@gmail.com","916-380-8854","Sprint","9163808854@messaging.sprintpcs.com"]
[]
["District Leader","Email","Phone Number","Service Provider","Phone Number2"]
[{"$f":"Reminder!A63","v":"Jordan"},"mrc_bwmn@yahoo.com","210-844-7228","AT&T","2108447228@txt.att.net"]

{"sheet":"Help","index":7,"n_rows":0,"n_cols":0,"rows_kept":0,"cut":false,"hidden":false,"merged":[]}